Cogmind - Beta 16.1 @@@ ROGUE MODE // 2026.03.28 @ 19:09:51 Player: Gatamar Result: Destroyed by as-03098 with Assembled Blade Performance ------------- Evolutions (0) 0 Regions Visited (2) 400 Robots Destroyed (14) 70 Value Destroyed (423) 423 Prototype IDs (0) 0 Alien Tech Used (0) 0 Bonus (0) 0 TOTAL SCORE: 893 Bonus ------- None Cogmind --------- Core Integrity 0/250 Matter 280/300 Energy 84/100 System Corruption 4% Temperature Cool (0) Movement Walking (120) Location -10/Mines Parts ------- > --- POWER (1) -------- (None) > --- PROPULSION (2) --- Aluminum Leg Aluminum Leg > --- UTILITY (2) ------ Targeting Computer > --- WEAPON (2) ------- Assault Rifle > --- INVENTORY (5) ---- Light Ion Engine Light Nuclear Core Visual Processing Unit Peak State ------------ > --- POWER ------------ Light Nuclear Core > --- PROPULSION ------- Light Treads Light Treads > --- UTILITY ---------- Medium Storage Unit Targeting Computer > --- WEAPON ----------- Beam Cannon Mining Laser > --- INVENTORY -------- Light Ion Engine Light Nuclear Core Aluminum Leg Aluminum Leg Wheel Compact Wheel Visual Processing Unit Targeting Computer Beam Cannon Assault Rifle [Rating: 10] Favorites ----------- Power Light Nuclear Core Engine Light Ion Engine Power Core Light Nuclear Core Propulsion Light Treads Treads Light Treads Leg Aluminum Leg Wheel Compact Wheel Utility Targeting Computer Storage Medium Storage Unit Processor Targeting Computer Weapon Beam Cannon Energy Cannon Beam Cannon Ballistic Gun Assault Rifle Special Weapon Mining Laser Build | -11 -10 -10 ------- Run | Yrd Mat Min Slots Evolved . | . . . Power . | . . . Propulsion . | . . . Utility . | . . . Weapon . | . . . Parts Attached 20 | 6 7 7 Power 2 | 1 1 . Engine 1 | 1 . . Core 1 | . 1 . Reactor . | . . . Propulsion 6 | 2 . 4 Treads 2 | 2 . . Leg 2 | . . 2 Wheel 2 | . . 2 Hover . | . . . Flight . | . . . Utility 6 | 1 3 2 Device . | . . . Storage 3 | 1 1 1 Processor 3 | . 2 1 Hackware . | . . . Protection . | . . . Artifact . | . . . Weapon 6 | 2 3 1 Energy Gun . | . . . Energy Cannon 2 | . 1 1 Ballistic Gun 2 | 2 . . Ballistic Cannon . | . . . Launcher . | . . . Special Weapon 2 | . 2 . Impact Weapon . | . . . Slashing Weapon . | . . . Piercing Weapon . | . . . Special Melee Weapon . | . . . Unidentified Prototypes . | . . . Parts Lost 10 | . 2 8 Power 1 | . . 1 Propulsion 3 | . . 3 Utility 2 | . 1 1 Weapon 4 | . 1 3 Highest Loss Streak 4 | . 1 4 To Critical Strikes . | . . . Average Backups 9 | 3 9 9 Power 1 | . 1 2 Propulsion 3 | 1 4 3 Utility 2 | . 2 2 Weapon 1 | . 1 1 Tool/Special . | . . . Unused Backups 4 | . 1 3 Power 2 | . . 2 Propulsion . | . . . Utility 1 | . . 1 Weapon 1 | . 1 . Tool/Special . | . . . Average Slot Usage (%) 93 | . 92 94 Engine 5 | . 13 . Core 7 | . . 12 Treads 25 | . 28 23 Wheel 1 | . . 3 Storage 14 | . 14 14 Processor 10 | . 7 12 Energy Cannon 9 | . 6 12 Ballistic Gun 9 | . 18 1 Special Weapon 7 | . 2 11 Peak Build Rating 10 | 6 10 10 Average Rating 8 | 4 7 9 On Entrance 5 | . 6 10 Avg Prop Armor Cover (%) . | . . . Naked Turns . | . . . Heaviest Build 98 | 11 19 98 Greatest Support 40 | 40 40 40 Greatest Overweight (x) 3 | . . 3 Average Overweight (x) . | . . . Largest Inventory Capacity 25 | 8 10 25 Average Capacity 13 | 6 9 17 Most Carried 10 | 6 10 10 Average Carried 9 | 3 9 9 Final Capacity 10 | 8 10 5 Final Carried 10 | 6 10 3 Class Distribution -------------------- 100% | Mutant Dominant Class ---------------- Mutant | -10/Materials Mutant | -10/Mines Resources | -11 -10 -10 ----------- Run | Yrd Mat Min Matter Collected 550 | 234 211 105 Remotely . | . . . Salvage Created 659 | . 607 52 Parts 29 | . 29 . Haulers Intercepted . | . . . Recyclers Shooed 2 | . 2 . Parts Field Recycled . | . . . Retrieved Matter . | . . . Parts Self-Destructed . | . . . Prevented . | . . . Parts Restored . | . . . Kills | -11 -10 -10 ------- Run | Yrd Mat Min Combat Hostiles Destroyed 15 | . 10 5 Guns 6 | . 5 1 Cannons 9 | . 5 4 Classes Destroyed 4 | . 3 1 Recycler 2 | . 2 . Watcher 2 | . 2 . Grunt 10 | . 10 . Assembled 5 | . . 5 Best Kill Streak 3 | . 3 2 Combat Bots Only 2 | . 2 2 Max Kills in Single Turn 1 | . 1 1 Gunslinging . | . . . Exploded . | . . . Melee . | . . . Uniques/NPCs Destroyed . | . . . Combat | -11 -10 -10 -------- Run | Yrd Mat Min Hostile Shots Fired 107 | . 49 58 Missed 27 | . 11 16 Hits 80 | . 38 42 Melee 9 | . . 9 Projectile 71 | . 38 33 Critical Strikes 1 | . . 1 Damage Taken 1215 | . 476 739 Core 266 | . 63 203 Absorbed by Shields . | . . . Regen/Repaired (Parts) 35 | . 35 . Core Remaining (%) 100 | 100 . . Volleys Fired 87 | . 50 37 Largest 2 | . 2 1 Hottest 100 | . 100 100 Shots Fired 117 | . 80 37 Gun 72 | . 60 12 Cannon 42 | . 18 24 Launcher . | . . . Special 3 | . 2 1 Kinetic 72 | . 60 12 Thermal 45 | . 20 25 Explosive . | . . . Electromagnetic . | . . . Robot Hit Streak 9 | . 9 8 Robot Miss Streak 5 | . 3 5 Penetration Max . | . . . Secondary Targets . | . . . Shots Hit Robots 70 | . 50 20 Core Hits 39 | . 28 11 Critical Kills . | . . . Critical Parts Destroyed . | . . . Critical Strikes . | . . . Melee Attacks . | . . . Impact . | . . . Slashing . | . . . Piercing . | . . . Sneak Attacks . | . . . Combat Hostiles . | . . . Follow-up Attacks . | . . . Damage Inflicted 971 | . 633 338 Guns 424 | . 369 55 Cannons 509 | . 263 246 Explosions . | . . . Melee . | . . . Ramming 14 | . 1 13 Kinetic 424 | . 369 55 Thermal 533 | . 263 270 Explosive . | . . . Electromagnetic . | . . . Impact . | . . . Slashing . | . . . Piercing . | . . . Highest Corruption 4 | . . 4 Average Corruption 3 | . . 3 Corruption Purged . | . . . Corruption Blocked . | . . . Effects 3 | . . 3 Matter Fused 1 | . . 1 Energy Discharges 1 | . . 1 Data Loss (minor) 1 | . . 1 Overload Shots . | . . . Overflow Damage . | . . . Projectiles . | . . . Explosions . | . . . Melee . | . . . Knockbacks 1 | . . 1 Impact 1 | . . 1 Kinetic . | . . . Secondary . | . . . Self-Inflicted Damage . | . . . Shots . | . . . Rammed 3 | . 1 2 Targets Rammed 3 | . 1 2 Kicked . | . . . Crushed . | . . . Highest Temperature 203 | . 203 201 Average Temperature 82 | . 63 101 Received Heat Transfer 490 | . 270 220 Siege Activations . | . . . Martial Activations . | . . . Shielding Activations . | . . . Robots Disrupted . | . . . Combat Hostiles . | . . . Robots Corrupted . | . . . Combat Hostiles . | . . . Parts Fried . | . . . Impact Corruptions . | . . . Robots Melted . | . . . Combat Hostiles . | . . . Parts Melted 1 | . 1 . Heat Transferred 1123 | . 555 568 Parts Sabotaged . | . . . Parts Stolen . | . . . Parts Stripped . | . . . Power Chain Reactions . | . . . Alert | -11 -10 -10 ------- Run | Yrd Mat Min Maximum Alert Level . | . . . Low Security (%) 100 | 100 100 100 Level 1 . | . . . Level 2 . | . . . Level 3 . | . . . Level 4 . | . . . Level 5 . | . . . High Security . | . . . Max Security . | . . . Peak Influence 85 | . 85 8 Initial 8 | . . 8 Average 15 | . 36 . Influence Increases 324 | . 324 . Destroy 0b10 Robot/C 200 | . 200 . Destroy 0b10 Robot/NC 20 | . 20 . Destroy Leader 54 | . 54 . Successful Hack 18 | . 18 . Destroy Structure 2 | . 2 . Lose Combat Pursuer 30 | . 30 . Influence Decreases 324 | . 301 23 Entered New Map 15 | . . 15 Time Decay 289 | . 281 8 Lost Part 20 | . 20 . Squads Dispatched 2 | . 2 . Investigation 2 | . 2 . Extermination . | . . . Reinforcement . | . . . Assault . | . . . Garrison . | . . . Intercept . | . . . Searches Triggered . | . . . Construction Impeded . | . . . Haulers Reinforced . | . . . Active Scanning Responses . | . . . Cargo Convoy Interrupts . | . . . Stealth | -11 -10 -10 --------- Run | Yrd Mat Min Distress Signals 1 | . 1 . Communications Jammed . | . . . Distress Signals . | . . . Times Spotted 24 | . 15 9 Peak Tracking Total 5 | . 5 3 Tactical Retreats 3 | . 1 2 Traps | -11 -10 -10 ------- Run | Yrd Mat Min Traps Triggered . | . . . Indirectly . | . . . Trap Hack Attempts . | . . . Triggered . | . . . Disarmed . | . . . Reprogrammed . | . . . Reused . | . . . Traps Extracted . | . . . Installed . | . . . Triggered . | . . . Machines | -11 -10 -10 ---------- Run | Yrd Mat Min Machines Disabled . | . . . Max in Single Turn . | . . . Machines Repaired . | . . . Machines Dismantled . | . . . Machines Sabotaged . | . . . Overloaded Fab Kills . | . . . Hacking | -11 -10 -10 --------- Run | Yrd Mat Min Machines Accessed 6 | . 6 . Terminals 4 | . 4 . Fabricators . | . . . Repair Stations 1 | . 1 . Recycling Units 1 | . 1 . Scanalyzers . | . . . Garrison Access . | . . . Total Hacks 18 | . 18 . Successful 9 | . 9 . Failed 9 | . 9 . Catastrophic 2 | . 2 . Database Lockouts . | . . . Manual 15 | . 15 . Terminals 13 | . 13 . Fabricators . | . . . Repair Stations 2 | . 2 . Recycling Units 3 | . 3 . Scanalyzers . | . . . Garrison Access . | . . . Terminal Hacks 3 | . 3 . Branch Access Points 1 | . 1 . Emergency Access Points 1 | . 1 . Zone Layout 1 | . 1 . Fabricator Hacks . | . . . Repair Station Hacks 2 | . 2 . Scan Component 1 | . 1 . Repair 1 | . 1 . Recycling Unit Hacks 1 | . 1 . Report Inventory 1 | . 1 . Scanalyzer . | . . . Garrison Access Hacks . | . . . Unauthorized Hacks 1 | . 1 . Terminals 1 | . 1 . Assimilate 1 | . 1 . Fabricators . | . . . Repair Stations . | . . . Recycling Units . | . . . Scanalyzers . | . . . Garrison Access . | . . . Data Cores Recovered . | . . . Used . | . . . Hacking Detections 4 | . 4 . Full Trace Events 4 | . 4 . Feedback Events . | . . . Feedback Blocked . | . . . Robot Schematics Acquired . | . . . Robots Built . | . . . Authchips . | . . . Time . | . . . Total Robot Build Rating . | . . . Part Schematics Acquired . | . . . Parts Built . | . . . Authchips . | . . . Time . | . . . Total Part Build Rating . | . . . Part Studies Acquired . | . . . Parts Repaired 1 | . 1 . Time 26 | . 26 . Parts Recycled . | . . . Recycled Matter . | . . . Retrieved Matter . | . . . Retrieved Components . | . . . Parts Scanalyzed . | . . . Part Schematics Acquired . | . . . Parts Damaged . | . . . Bothacking | -11 -10 -10 ------------ Run | Yrd Mat Min Used RIF Installer . | . . . Robots Hacked . | . . . Non-combat . | . . . Combat . | . . . Robot Hacks Applied . | . . . Relay Couplers Released . | . . . Fabnet Peak Effective % . | . . . Robots Rewired . | . . . Allies Hacked . | . . . Hacks Repelled . | . . . Allies | -11 -10 -10 -------- Run | Yrd Mat Min Total Allies . | . . . Largest Group . | . . . Highest-Rated Group . | . . . Highest-Rated Ally . | . . . Total Orders . | . . . Ally Attacks . | . . . Total Damage . | . . . Kills . | . . . Allies Corrupted . | . . . Allies Melted . | . . . Intel | -11 -10 -10 ------- Run | Yrd Mat Min Active Infowar (turns) . | . . . Robot Analysis Total . | . . . Derelict Logs Recovered 1 | . . 1 Drone Launches . | . . . Drone Recoveries . | . . . Exploration | -11 -10 -10 ------------- Run | Yrd Mat Min Turns Passed 1715 | 75 733 907 Spaces Moved 744 | 40 319 385 Core 3 | 3 . . Treads 673 | 37 319 317 Legs 14 | . . 14 Wheels 54 | . . 54 Hover . | . . . Flight . | . . . Fastest Speed 50 | 50 160 90 Average Speed 177 | 151 160 194 Slowest Speed 320 | 160 160 320 Overloaded Moves . | . . . Propulsion Burnouts . | . . . Robots Hopped . | . . . Potential Cave-ins . | . . . Cave-ins Triggered . | . . . Exploration Rate (%) 40 | 3 57 61 Regions Visited 2 Branch Regions 1 Pre-discovered Areas . | . . . Known Exits Taken 1 | . 1 . Unknown Exits Taken 1 | 1 . . Scrap Searched 1 | . . 1 Spaces Dug 1 | . 1 . Terrain Destroyed 1 | . 1 . Melee . | . . . Projectile 1 | . 1 . AOE . | . . . Terrain Rammed . | . . . Walls Destroyed . | . . . Machines Disabled . | . . . Actions | -11 -10 -10 --------- Run | Yrd Mat Min Total 1014 | 51 463 500 Wait 138 | . 76 62 Move 742 | 39 318 385 Hop . | . . . Pick Up 12 | 6 6 . Fast Attach 11 | 6 4 1 Attach 8 | . 1 7 Detach 1 | . . 1 Swap 4 | . 3 1 Drop 8 | . 4 4 Fire 87 | . 50 37 Melee . | . . . Ram . | . . . Kick . | . . . Crush 3 | . 1 2 Escape Stasis . | . . . Rewire . | . . . Trap . | . . . Miscellaneous . | . . . Route ------- -11/Scrapyard -10/Materials (discovered 4 exits: [*Mat x2] / *Min x2) -10/Mines (discovered 1 exit: [*Mat]) History --------- Turn | Location | Event 15 | -11/Scrapyard | Discovered new exit (range 15) 76 | -11/Scrapyard | Entered Materials 152 | -10/Materials | Discovered new exit (range 10) 303 | -10/Materials | Build established: Mutant 343 | -10/Materials | Repaired Assault Rifle 378 | -10/Materials | Discovered new exit (range 10) 546 | -10/Materials | Identified exit to Mines 622 | -10/Materials | Discovered new exit (range 14) 809 | -10/Materials | Entered Mines 910 | -10/Mines | Learned 2 Materials zone layouts 1364 | -10/Mines | Discovered new exit (range 6) 1465 | -10/Mines | Assembled infested the area 1470 | -10/Mines | Assisted by a Guerilla fighting off Assembled 1594 | -10/Mines | Lost 4 parts (2n1u1w) 1642 | -10/Mines | Core integrity fell below 50% 1702 | -10/Mines | Lost 4 parts (1p1n2w) 1707 | -10/Mines | Core integrity fell below 20% 1716 | -10/Mines | Destroyed by as-03098 with Assembled Blade Last Messages --------------- 01598_ Acquired 13 matter. 01600_ Acquired 2 matter. 01606_ System corrupted: Energy discharge (-56). 01618_ Beam Cannon destroyed. 01624_ as-09978 destroyed. 01632_ System corrupted: Component data lost. 01633_ Lgt. Nuclear Core destroyed. 01645_ Beam Cannon destroyed. 01648_ System corrupted: Matter fused (-9). 01652_ as-71247 destroyed. 01655_ Acquired 30 matter. 01671_ Wheel destroyed. 01684_ K-01 Serf collects debris. 01688_ Acquired 30 matter. 01692_ K-01 Serf collects debris. 01695_ Dropped Huge Storage Unit. 01697_ Dropped Com. Wheel. 01697_ as-03098 sneak attacks. 01697_ R-06 Scavenger destroyed. 01699_ Dropped Med. Storage Unit. Map ----- +----------------------------------------------------+ | ?????????????????????????????????????????????????? | | ?????????????????????????????????????????????????? | | ?????????????????????????????????????????????????? | | ?????????????????????????????????????????????????? | | ?????????????????????????????????????????????????? | | ?????????????????????????????????????????????????? | | ?????????????????????????????????????????????????? | | ?????????????????????????????????????????????????? | | ?????????????????????????????????????????????????? | | ?????????????????????????????????????????????????? | | ?????????????????????????????????????????????????? | | ?????????????????????????????????????????????????? | | ?????????????????????????????????????????????####? | | ?????????????????????????????????####???????## ## | | ?????????????????????????????????# ???????# # | | ?????????????????????????????????# #????????# | | ?????????????????????????????????# #????????## | | ?????????????????????????????????# ####?????## | | ???????????????? ????????????????# $ #?????# | | ????????????????""??????????????## #????## | | ?????????????? """????????????## #?????# | | ????????????? """ ?????????## #?????## % | | ???????????????? ??????### #??????# # | | ???????????????????# ###### #??????#% ## | | ????????????????????# ######## ## | | ????????????????????# @a =! % # | | ????????????????????## a ! =%= | | ?????????????????????## #### ## ## | | ??????????????????????###### #??# ## ### | | ???????????????????????????## #??# ## #?## | | ????????????????????????????## ##??# ## #??#### | | ?####????????????????????????######???# ## #?????? | | ## #?????????????????????????????????# ## #????## | | # #?????????????????????????????????# ## #???## | | # #?????????????????????????????????? ?# ##### | | # ##????????????????????????????????? ?# | | # #????????????????????????????????? ?####### | | ?# #########????????????????????????? ???????## | | ?# #????????????????????????? ????????# | | ?## #?????????????????????????#????????# | | ?## ##### #????????????????????????########### | | ## #?### #??????????????????###???# | | # #### ##??????????? ???## #??# | | ##?# ##????????? ## #?# ##### | | ##??# ####????????? ?# #?# | | ##??## ##??????????? # #?# | | # ##??### #??????????????# # #?# | | # #????## #???????????????# ####### | | ## ##????## #???????????????## ##???### | | ## ########## ##????????????????## #?????? | +----------------------------------------------------+ Best States ------------- Heat Dissipation 25 Energy Generation 14 Energy Capacity 160 Matter Stores 300 Matter Capacity 300 Sight Range 16 Terrain Scan Density 10 Evasion (%) 55 Targeting Accuracy 5 Recoil Reduction 2 Item Schematics ----------------- None Robot Schematics ------------------ None Fabricated ------------ Nothing Repaired ---------- Assault Rifle | 65% | -10/Materials Studied --------- None Alien Tech Used ----------------- None Achievements -------------- None Challenges ------------ None Game ------ Seed EncryptedContainmentBattery Manual? 0 Play Time 00:13:43 Cumulative 26.3 hours Start 2026.03.28 @ 16:35:22 End 2026.03.28 @ 19:09:51 Sessions 3 Manual Loads 0 Difficulty Rogue Special Mode None Game No. 66 Rogue 66 Adventurer 0 Explorer 0 Win Type - Total 0 Types 0/0/0/0/0/0/0/0/0/0 Lore% 24 Gallery% 26 Achievement% 20 Wizard Run 0 Options --------- Layout 1 ASCII 0 Keyboard 0 Movement Numpad Keybinds 0 Fullscreen 1 Font 32/SmallcapsGlow Map View 50x35 Zoom Use 0% Tactical HUD 1 Map Filters NONE Filters NONE Steam 1 RUN: 79315e2a-b38e-4e82-b671-ba822f160378